[Event "Amsterdam Chess Open 2024"]
[Site "Amsterdam"]
[Date "2024.11.03"]
[Round "6.27"]
[White "Chay Mes"]
[Black "Leonard Schneider"]
[Result "0-1"]
[ECO "A80"]
[WhiteElo "1200"]
[BlackElo "1200"]
[Annotator "NA RC"]
[PlyCount "78"]
[EventDate "2024.10.31"]
[EventType "swiss"]
[EventCountry "NED"]
[SourceTitle "playchess.com"]
[Source "ChessBase"]
[SourceQuality "1"]
[TimeControl "5400+30"]

1. d4 {[%emt 0:00:03]} f5 {[%emt 0:00:23]} 2. Nf3 {[%emt 0:00:02]} Nf6 {[%emt 0:00:20]} 3. Bf4 {[%emt 0:00:02]} e6 {[%emt 0:00:08]} 4. e3 {[%emt 0:00:13]} b6 {[%emt 0:00:50]} 5. Bd3 {[%emt 0:00:29]} Bb7 {[%emt 0:00:10]} 6. Nbd2 {[%emt 0:00:57]} Be7 {[%emt 0:00:40]} 7. h3 {[%emt 0:01:45]} Ne4 {[%emt 0:05:48]} 8. O-O {[%emt 0:02:19]} O-O {[%emt 0:00:35]} 9. c3 {[%emt 0:01:56]} d6 {[%emt 0:00:51]} 10. Qc2 {[%emt 0:02:42]} Nxd2 {[%emt 0:00:27]} 11. Nxd2 {[%emt 0:00:33]} Nd7 {[%emt 0:00:29]} 12. Bh2 {[%emt 0:03:22]} Bg5 {[%emt 0:09:08]} 13. b4 {[%emt 0:10:38]} Qe8 {[%emt 0:00:54]} 14. Rfe1 {[%emt 0:09:55]} Qg6 {[%emt 0:04:40]} 15. e4 {[%emt 0:10:40]} Bxd2 {[%emt 0:00:50]} 16. Qxd2 {[%emt 0:01:39]} fxe4 {[%emt 0:00:20]} 17. Bc2 {[%emt 0:03:34]} e3 {[%emt 0:05:48]} 18. Bxg6 {[%emt 0:00:18]} exd2 {[%emt 0:00:18]} 19. Rxe6 {[%emt 0:03:32]} hxg6 {[%emt 0:00:15]} 20. Re2 {[%emt 0:01:43]} Rae8 {[%emt 0:00:45]} 21. Rxd2 {[%emt 0:00:43]} Bd5 {[%emt 0:03:01]} 22. Rc1 {[%emt 0:07:41]} Bc4 {[%emt 0:00:35]} 23. f3 {[%emt 0:02:04]} b5 {[%emt 0:02:54]} 24. Kf2 {[%emt 0:02:51]} Nb6 {[%emt 0:00:41]} 25. Re1 {[%emt 0:03:19]} Rxe1 {[%emt 0:00:56]} 26. Kxe1 {[%emt 0:00:02]} Re8+ {[%emt 0:00:15]} 27. Kf2 {[%emt 0:00:19]} Kf7 {[%emt 0:00:15]} 28. g4 {[%emt 0:01:23]} Nd5 {[%emt 0:00:27]} 29. Rc2 {[%emt 0:01:38]} Re3 {[%emt 0:00:15]} 30. a3 {[%emt 0:00:52]} Rxc3 {[%emt 0:00:18]} 31. Rxc3 {[%emt 0:01:16]} Nxc3 {[%emt 0:00:09]} 32. h4 {[%emt 0:00:41]} Nb1 {[%emt 0:00:23]} 33. Bf4 {[%emt 0:01:04]} Nxa3 {[%emt 0:00:27]} 34. h5 {[%emt 0:00:40]} gxh5 {[%emt 0:00:20]} 35. gxh5 {[%emt 0:00:11]} Nc2 {[%emt 0:00:15]} 36. Bg5 {[%emt 0:00:08]} Nxd4 {[%emt 0:01:38]} 37. f4 {[%emt 0:00:40]} Ne6 {[%emt 0:00:44]} 38. Ke3 {[%emt 0:02:09]} Nxg5 {[%emt 0:11:05]} 39. fxg5 {[%emt 0:01:20]} c5 {[%emt 0:03:34]} 0-1

[Event "Amsterdam Chess Open 2024"]
[Site "Amsterdam"]
[Date "2024.11.03"]
[Round "6.28"]
[White "Paul Shellard"]
[Black "Sonmez, Ozkal"]
[Result "0-1"]
[ECO "D58"]
[WhiteElo "1550"]
[BlackElo "1637"]
[Annotator "NA RC"]
[PlyCount "64"]
[EventDate "2024.10.31"]
[EventType "swiss"]
[EventCountry "NED"]
[SourceTitle "playchess.com"]
[Source "ChessBase"]
[SourceQuality "1"]
[TimeControl "5400+30"]

1. d4 {[%emt 0:00:03]} Nf6 {[%emt 0:00:06]} 2. Nf3 {[%emt 0:00:15]} d5 {[%emt 0:00:06]} 3. c4 {[%emt 0:00:28]} e6 {[%emt 0:00:12]} 4. Bg5 {[%emt 0:00:27]} Be7 {[%emt 0:00:44]} 5. Nc3 {[%emt 0:00:32]} O-O {[%emt 0:00:24]} 6. e3 {[%emt 0:00:28]} b6 {[%emt 0:01:19]} 7. cxd5 {[%emt 0:03:43]} exd5 {[%emt 0:00:56]} 8. Bd3 {[%emt 0:00:28]} Nbd7 {[%emt 0:05:10]} 9. O-O {[%emt 0:00:17]} h6 {[%emt 0:00:19]} 10. Bh4 {[%emt 0:00:39]} Re8 {[%emt 0:04:19]} 11. Rc1 {[%emt 0:02:48]} Bb7 {[%emt 0:01:06]} 12. Bg3 {[%emt 0:01:41]} Ne4 {[%emt 0:02:41]} 13. Bxc7 {[%emt 0:04:32]} Qxc7 {[%emt 0:03:05]} 14. Nxe4 {[%emt 0:00:34]} Qd8 {[%emt 0:00:33]} 15. Nc3 {[%emt 0:01:11]} a6 {[%emt 0:01:26]} 16. Qb3 {[%emt 0:01:19]} Nf6 {[%emt 0:00:33]} 17. Na4 {[%emt 0:04:35]} Nd7 {[%emt 0:02:07]} 18. Bf5 {[%emt 0:03:54]} Rb8 {[%emt 0:03:14]} 19. Bxd7 {[%emt 0:01:34]} Qxd7 {[%emt 0:00:09]} 20. Ne5 {[%emt 0:05:05]} Qe6 {[%emt 0:00:35]} 21. Qxb6 {[%emt 0:01:05]} Qf5 {[%emt 0:02:45]} 22. Qa5 {[%emt 0:06:58]} Bd6 {[%emt 0:00:36]} 23. Nf3 {[%emt 0:02:03]} Re6 {[%emt 0:01:20]} 24. Qd2 {[%emt 0:07:32]} Rg6 {[%emt 0:03:06]} 25. Qd1 {[%emt 0:03:52]} Bc8 {[%emt 0:24:06]} 26. Nh4 {[%emt 0:06:52]} Qh3 {[%emt 0:01:23]} 27. g3 {[%emt 0:04:32]} Qxh4 {[%emt 0:00:56]} 28. Qf3 {[%emt 0:03:07]} Qh3 {[%emt 0:06:49]} 29. Nc3 {[%emt 0:02:08]} Rxb2 {[%emt 0:10:49]} 30. Nxd5 {[%emt 0:03:04]} Bb7 {[%emt 0:01:15]} 31. Rb1 {[%emt 0:00:07]} Bxd5 {[%emt 0:03:21]} 32. Qxd5 {[%emt 0:00:03]} Bxg3 {[%emt 0:00:48]} 0-1

[Event "Amsterdam Chess Open 2024"]
[Site "Amsterdam"]
[Date "2024.11.03"]
[Round "6.29"]
[White "Robin de Waal"]
[Black "Sommer, Hugo"]
[Result "1-0"]
[ECO "D66"]
[WhiteElo "1500"]
[BlackElo "1595"]
[Annotator "NA RC"]
[PlyCount "63"]
[EventDate "2024.10.31"]
[EventType "swiss"]
[EventCountry "NED"]
[SourceTitle "playchess.com"]
[Source "ChessBase"]
[SourceQuality "1"]
[TimeControl "5400+30"]

1. Nf3 {[%emt 0:02:28]} d5 {[%emt 0:00:09]} 2. c4 {[%emt 0:00:08]} c6 {[%emt 0:00:13]} 3. cxd5 {[%emt 0:00:34]} cxd5 {[%emt 0:00:18]} 4. d4 {[%emt 0:00:15]} Nf6 {[%emt 0:00:39]} 5. Bg5 {[%emt 0:00:36]} e6 {[%emt 0:01:13]} 6. Nc3 {[%emt 0:01:05]} Be7 {[%emt 0:00:57]} 7. e3 {[%emt 0:01:15]} O-O {[%emt 0:00:47]} 8. Bd3 {[%emt 0:00:35]} h6 {[%emt 0:03:02]} 9. Bh4 {[%emt 0:00:37]} Nbd7 {[%emt 0:03:43]} 10. O-O {[%emt 0:02:18]} Re8 {[%emt 0:01:00]} 11. a3 {[%emt 0:05:31]} a6 {[%emt 0:04:54]} 12. Rc1 {[%emt 0:02:02]} b5 {[%emt 0:02:02]} 13. b4 {[%emt 0:02:05]} Bb7 {[%emt 0:01:45]} 14. Re1 {[%emt 0:05:04]} Nb6 {[%emt 0:04:13]} 15. Ne5 {[%emt 0:00:38]} Nc4 {[%emt 0:03:24]} 16. Nxc4 {[%emt 0:01:54]} dxc4 {[%emt 0:00:27]} 17. Be2 {[%emt 0:00:25]} Nd5 {[%emt 0:03:16]} 18. Bxe7 {[%emt 0:02:08]} Qxe7 {[%emt 0:00:02]} 19. Bf3 {[%emt 0:02:00]} Nxc3 {[%emt 0:09:25]} 20. Rxc3 {[%emt 0:00:15]} a5 {[%emt 0:02:36]} 21. Bxb7 {[%emt 0:02:13]} Qxb7 {[%emt 0:00:32]} 22. Qb1 {[%emt 0:02:20]} axb4 {[%emt 0:06:11]} 23. Qxb4 {[%emt 0:01:00]} Ra4 {[%emt 0:01:32]} 24. Qb2 {[%emt 0:04:32]} Rea8 {[%emt 0:01:00]} 25. Rb1 {[%emt 0:04:27]} b4 {[%emt 0:01:33]} 26. Rxc4 {[%emt 0:00:27]} Rxa3 {[%emt 0:04:58]} 27. Rxb4 {[%emt 0:02:47]} Qe7 {[%emt 0:00:30]} 28. Rb8+ {[%emt 0:01:39]} Rxb8 {[%emt 0:01:16]} 29. Qxb8+ {[%emt 0:00:12]} Kh7 {[%emt 0:05:00]} 30. h3 {[%emt 0:04:48]} Ra2 {[%emt 0:04:07]} 31. Rc1 {[%emt 0:04:21]} Qh4 {[%emt 0:03:46]} 32. Qb1+ {[%emt 0:00:19]} 1-0

[Event "Amsterdam Chess Open 2024"]
[Site "Amsterdam"]
[Date "2024.11.03"]
[Round "6.30"]
[White "Witte, Phoebe"]
[Black "Marijn Demarteau"]
[Result "1-0"]
[ECO "C79"]
[WhiteElo "1619"]
[BlackElo "1535"]
[Annotator "NA RC"]
[PlyCount "123"]
[EventDate "2024.10.31"]
[EventType "swiss"]
[EventCountry "NED"]
[SourceTitle "playchess.com"]
[Source "ChessBase"]
[SourceQuality "1"]
[TimeControl "5400+30"]

1. e4 {[%emt 0:00:06]} e5 {[%emt 0:00:45]} 2. Nf3 {[%emt 0:00:05]} Nc6 {[%emt 0:00:16]} 3. Bb5 {[%emt 0:00:10]} d6 {[%emt 0:00:21]} 4. O-O {[%emt 0:00:10]} Bd7 {[%emt 0:00:13]} 5. c3 {[%emt 0:01:11]} a6 {[%emt 0:00:29]} 6. Ba4 {[%emt 0:00:04]} Nf6 {[%emt 0:00:33]} 7. d3 {[%emt 0:00:27]} h6 {[%emt 0:00:59]} 8. Re1 {[%emt 0:00:44]} Be7 {[%emt 0:02:39]} 9. Nbd2 {[%emt 0:03:59]} O-O {[%emt 0:03:47]} 10. Nf1 {[%emt 0:00:36]} b5 {[%emt 0:01:47]} 11. Bc2 {[%emt 0:00:05]} Re8 {[%emt 0:02:13]} 12. Ng3 {[%emt 0:01:53]} Qc8 {[%emt 0:04:26]} 13. Be3 {[%emt 0:06:02]} Ng4 {[%emt 0:01:55]} 14. Bd2 {[%emt 0:02:00]} Qb8 {[%emt 0:03:53]} 15. h3 {[%emt 0:01:23]} Nf6 {[%emt 0:01:25]} 16. d4 {[%emt 0:02:23]} exd4 {[%emt 0:02:56]} 17. cxd4 {[%emt 0:00:45]} d5 {[%emt 0:06:29]} 18. e5 {[%emt 0:01:30]} Nh7 {[%emt 0:00:49]} 19. Nf5 {[%emt 0:09:24]} Bxf5 {[%emt 0:03:59]} 20. Bxf5 {[%emt 0:01:40]} Nb4 {[%emt 0:03:34]} 21. a3 {[%emt 0:01:10]} Nc6 {[%emt 0:02:07]} 22. Bxh7+ {[%emt 0:00:11]} Kxh7 {[%emt 0:00:21]} 23. Qc2+ {[%emt 0:00:10]} Kg8 {[%emt 0:01:23]} 24. Qxc6 {[%emt 0:00:30]} Qd8 {[%emt 0:01:25]} 25. Rac1 {[%emt 0:02:11]} Ra7 {[%emt 0:02:07]} 26. Qc2 {[%emt 0:04:44]} c5 {[%emt 0:02:13]} 27. dxc5 {[%emt 0:04:32]} Qc7 {[%emt 0:01:29]} 28. Qf5 {[%emt 0:03:48]} Qc6 {[%emt 0:03:13]} 29. Nd4 {[%emt 0:01:30]} Qc7 {[%emt 0:02:42]} 30. e6 {[%emt 0:03:57]} Bf6 {[%emt 0:03:42]} 31. exf7+ {[%emt 0:03:19]} Qxf7 {[%emt 0:01:18]} 32. Rxe8+ {[%emt 0:01:17]} Qxe8 {[%emt 0:00:33]} 33. Qxd5+ {[%emt 0:01:03]} Kh8 {[%emt 0:02:18]} 34. c6 {[%emt 0:03:39]} Bxd4 {[%emt 0:06:43]} 35. Qxd4 {[%emt 0:01:41]} Rc7 {[%emt 0:02:09]} 36. Bf4 {[%emt 0:01:34]} Rxc6 {[%emt 0:00:56]} 37. Rxc6 {[%emt 0:00:55]} Qxc6 {[%emt 0:00:34]} 38. Bxh6 {[%emt 0:00:44]} Qxh6 {[%emt 0:01:06]} 39. Kh2 {[%emt 0:03:13]} Kh7 {[%emt 0:00:34]} 40. g3 {[%emt 0:01:44]} Qc6 {[%emt 0:01:33]} 41. h4 {[%emt 0:03:16]} Qh6 {[%emt 0:02:25]} 42. Qe4+ {[%emt 0:05:10]} Kg8 {[%emt 0:00:59]} 43. Qe3 {[%emt 0:03:20]} Qf6 {[%emt 0:00:51]} 44. Qd2 {[%emt 0:01:48]} Qf3 {[%emt 0:01:22]} 45. Qe3 {[%emt 0:03:05]} Qf6 {[%emt 0:00:48]} 46. Qe2 {[%emt 0:02:13]} Qd4 {[%emt 0:02:25]} 47. Kg2 {[%emt 0:03:29]} Qd5+ {[%emt 0:01:25]} 48. Qf3 {[%emt 0:01:40]} Qd2 {[%emt 0:01:16]} 49. Qc3 {[%emt 0:00:52]} Qd5+ {[%emt 0:00:38]} 50. f3 {[%emt 0:01:19]} Qd1 {[%emt 0:00:39]} 51. Kh3 {[%emt 0:00:55]} Qd7+ {[%emt 0:02:41]} 52. g4 {[%emt 0:00:56]} Qd1 {[%emt 0:00:59]} 53. h5 {[%emt 0:01:45]} Qf1+ {[%emt 0:01:15]} 54. Kh4 {[%emt 0:01:07]} Qe2 {[%emt 0:02:40]} 55. Kg3 {[%emt 0:03:10]} Qd1 {[%emt 0:02:04]} 56. Kh4 {[%emt 0:04:36]} Qd8+ {[%emt 0:02:16]} 57. g5 {[%emt 0:00:38]} Qd6 {[%emt 0:01:06]} 58. Qc8+ {[%emt 0:01:54]} Kf7 {[%emt 0:01:45]} 59. g6+ {[%emt 0:00:58]} Kf6 {[%emt 0:01:12]} 60. Qc3+ {[%emt 0:00:10]} Kf5 {[%emt 0:00:38]} 61. Qc2+ {[%emt 0:00:30]} Kf4 {[%emt 0:01:31]} 62. Qe4# {[%emt 0:00:09]} 1-0